lending/lending_fUSD_20240219
["ID","MTS","AMOUNT","RATE_DAILY","PERIOD"]
[314472120,1708371059200,-968.38,0.00046849,30]
[314472121,1708371059210,-574.19,0.00046849,30]
[314472122,1708371059221,-500.0,0.00046849,30]
[314472123,1708371059231,-500.0,0.00046849,30]
[314472124,1708371059241,-500.0,0.00046849,30]
[314472125,1708371059252,-500.0,0.00046849,30]
[314472126,1708371059261,-500.0,0.00046849,30]
[314472127,1708371059271,-500.0,0.00046849,30]
[314472128,1708371059281,-500.0,0.00046849,30]
[314472129,1708371059294,-500.0,0.00046849,30]
[314472130,1708371059303,-500.0,0.00046849,30]
[314472131,1708371059313,-625.75997248,0.00046849,30]
[314472132,1708371059323,-945.14,0.00046849,30]
[314472133,1708371059332,-623.11,0.00046849,30]
[314472134,1708371059342,-516.52533527,0.00046849,30]
[314472135,1708371059352,-500.0,0.00046849,30]
[314472136,1708371059361,-500.0,0.00046849,30]
[314472137,1708371059371,-500.0,0.00046849,30]
[314472138,1708371059381,-500.0,0.00046849,30]
[314472139,1708371059391,-500.0,0.00046849,30]
[314472140,1708371059401,-500.0,0.00046849,30]
[314472141,1708371059412,-500.0,0.00046849,30]
[314472142,1708371059422,-841.75,0.00046849,30]
[314472143,1708371059432,-500.0,0.00046849,30]
[314472144,1708371059443,-500.0,0.00046849,30]
[314472145,1708371059452,-500.0,0.00046849,30]
[314472146,1708371059462,-500.0,0.00046849,30]
[314472147,1708371059472,-521.81,0.00046849,30]
[314472148,1708371059482,-500.0,0.00046849,30]
[314472149,1708371059492,-422.79776413,0.00046849,30]
[314472150,1708371059502,-500.0,0.00046849,30]
[314472151,1708371059512,-500.0,0.00046849,30]
[314472152,1708371059522,-576.11,0.00046849,30]
[314472153,1708371059532,-500.0,0.00046849,30]
[314472154,1708371059544,-500.0,0.00046849,30]
[314472155,1708371059554,-500.0,0.00046849,30]
[314472156,1708371059564,-638.36,0.00046849,30]
[314472157,1708371059574,-500.0,0.00046849,30]
[314472158,1708371059585,-500.0,0.00046849,30]
[314472159,1708371059596,-526.68,0.00046849,30]
[314472160,1708371059607,-575.12,0.00046849,30]
[314472161,1708371059618,-500.0,0.00046849,30]
[314472162,1708371059635,-500.0,0.00046849,30]
[314472163,1708371059646,-500.0,0.00046849,30]
[314472164,1708371059658,-500.0,0.00046849,2]
[314472165,1708371059670,-500.0,0.00046849,30]
[314472166,1708371059683,-500.0,0.00046849,30]
[314472167,1708371059694,-1000.0,0.00046849,33]
[314472168,1708371059705,-500.0,0.00046849,30]
[314472169,1708371059717,-523.32584692,0.00046849,30]
[314472170,1708371059729,-150.0,0.00046849,30]
[314472171,1708371059747,-500.0,0.00046849,30]
[314472172,1708371059771,-724.74,0.00046849,30]
[314472173,1708371059788,-500.0,0.00046849,30]
[314472174,1708371059800,-844.23,0.00046849,30]
[314472175,1708371059819,-500.0,0.00046849,30]
[314472176,1708371059846,-500.0,0.00046849,30]
[314472177,1708371059863,-392.87084402,0.00046849,30]
[314472178,1708371059875,-500.0,0.00046849,30]
[314472179,1708371059887,-500.0,0.00046849,30]
[314472180,1708371059901,-500.0,0.00046849,30]
[314472181,1708371059914,-397.4414515,0.00046849,30]
[314472182,1708371059926,-500.0,0.00046849,30]
[314472183,1708371059939,-500.0,0.00046849,30]
[314472184,1708371059957,-500.0,0.00046849,30]
[314472185,1708371059970,-500.0,0.00046849,30]
[314472186,1708371059984,-266.1648584,0.00046849,30]
[314472187,1708371059997,-500.0,0.00046849,30]
[314472188,1708371060010,-500.0,0.00046849,30]
[314472189,1708371060023,-500.0,0.00046849,30]
[314472190,1708371060039,-500.0,0.00046849,30]
[314472191,1708371060052,-1000.0,0.00046849,50]
[314472192,1708371060067,-500.0,0.00046849,30]
[314472193,1708371060083,-500.0,0.00046849,30]
[314472194,1708371060422,-823.62,0.00046849,30]
[314472195,1708371060434,-500.0,0.00046849,30]
[314472196,1708371060446,-500.0,0.00046849,30]
[314472197,1708371060459,-500.0,0.00046849,30]
[314472198,1708371060473,-832.14,0.00046849,30]
[314472199,1708371060485,-500.0,0.00046849,30]
[314472200,1708371060498,-500.0,0.00046849,30]
[314472201,1708371060510,-500.0,0.00046849,30]
[314472202,1708371060522,-690.21,0.00046849,30]
[314472203,1708371060536,-1260.41,0.00046849,30]
[314472204,1708371060547,-926.34,0.00046849,30]
[314472205,1708371060558,-500.0,0.00046849,30]
[314472206,1708371060570,-500.0,0.00046849,30]
[314472207,1708371060581,-500.0,0.00046849,2]
[314472208,1708371060593,-520.8946004,0.00046849,30]
[314472209,1708371060605,-500.0,0.00046849,30]
[314472210,1708371060616,-562.4092172,0.00046849,30]
[314472211,1708371060628,-500.0,0.00046849,30]
[314472212,1708371060640,-1625.31,0.00046849,2]
[314472213,1708371060651,-1468.46,0.00046849,30]
[314472214,1708371060663,-500.0,0.00046849,30]
[314472215,1708371060683,-1036.53,0.00046849,30]
[314472216,1708371060694,-500.0,0.00046849,30]
[314472217,1708371060705,-500.0,0.00046849,30]
[314472218,1708371060718,-500.0,0.00046849,30]
[314472219,1708371060730,-500.0,0.00046849,30]
[314472220,1708371060742,-517.02620349,0.00046849,30]
[314472221,1708371060756,-823.05,0.00046849,30]
[314472222,1708371060767,-500.0,0.00046849,30]
[314472223,1708371060781,-508.39602496,0.00046849,30]
[314472224,1708371060795,-500.0,0.00046849,30]
[314472225,1708371060806,-500.0,0.00046849,2]
[314472226,1708371060816,-500.0,0.00046849,30]
[314472227,1708371060827,-1000.0,0.00046849,10]
[314472228,1708371060837,-500.0,0.00046849,30]
[314472229,1708371060848,-500.0,0.00046849,30]
[314472230,1708371060858,-689.73,0.00046849,30]
[314472231,1708371060869,-500.0,0.00046849,30]
[314472232,1708371060880,-500.0,0.00046849,30]
[314472233,1708371060892,-500.0,0.00046849,30]
[314472234,1708371060903,-500.0,0.00046849,30]
[314472235,1708371060916,-500.0,0.00046849,30]
[314472236,1708371060926,-762.36,0.00046849,30]
[314472237,1708371060941,-713.04,0.00046849,30]
[314472238,1708371060952,-601.97,0.00046849,30]
[314472239,1708371060963,-712.11,0.00046849,30]
[314472240,1708371060974,-500.0,0.00046849,30]
[314472241,1708371060988,-500.0,0.00046849,30]
[314472242,1708371061000,-1004.03,0.00046849,30]
[314472243,1708371061011,-500.0,0.00046849,30]
[314472244,1708371061023,-500.0,0.00046849,30]
[314472245,1708371061037,-500.0,0.00046849,30]
[314472246,1708371061049,-820.34,0.00046849,30]
[314472247,1708371061060,-500.0,0.00046849,30]
[314472248,1708371061071,-853.12,0.00046849,30]
[314472249,1708371061082,-500.0,0.00046849,30]
[314472250,1708371061094,-1267.16,0.00046849,30]
[314472251,1708371061105,-524.21,0.00046849,30]
[314472252,1708371061117,-893.5,0.00046849,30]
[314472253,1708371061129,-500.0,0.00046849,30]
[314472254,1708371061140,-713.4,0.00046849,30]
[314472255,1708371061151,-500.0,0.00046849,30]
[314472256,1708371061162,-563.02,0.00046849,30]
[314472257,1708371061173,-500.0,0.00046849,30]
[314472258,1708371061184,-500.0,0.00046849,30]
[314472259,1708371061197,-500.0,0.00046849,30]
[314472260,1708371061209,-500.0,0.00046849,30]
[314472261,1708371061221,-500.0,0.00046849,30]
[314472262,1708371061232,-500.0,0.00046849,30]
[314472263,1708371061243,-911.34,0.00046849,30]
[314472264,1708371061254,-500.0,0.00046849,30]
[314472265,1708371061266,-500.0,0.00046849,30]
[314472266,1708371061277,-500.0,0.00046849,30]
[314472267,1708371061290,-500.0,0.00046849,30]
[314472268,1708371061302,-500.0,0.00046849,30]
[314472269,1708371061314,-500.0,0.00046849,30]
[314472270,1708371061325,-500.0,0.00046849,30]
[314472271,1708371061337,-500.0,0.00046849,30]
[314472272,1708371061348,-500.0,0.00046849,30]
[314472273,1708371061360,-500.0,0.00046849,30]
[314472274,1708371061371,-513.50923401,0.00046849,30]
[314472275,1708371061383,-500.0,0.00046849,30]
[314472276,1708371061394,-500.0,0.00046849,30]
[314472277,1708371061405,-500.0,0.00046849,30]
[314472278,1708371061416,-515.89747049,0.00046849,30]
[314472279,1708371061428,-500.0,0.00046849,30]
[314472280,1708371061439,-500.0,0.00046849,30]
[314472281,1708371061450,-500.0,0.00046849,30]
[314472282,1708371061461,-868.01,0.00046849,30]
[314472283,1708371061477,-852.82,0.00046849,30]
[314472284,1708371061488,-500.0,0.00046849,30]
[314472285,1708371061501,-607.06,0.00046849,30]
[314472286,1708371061512,-511.94,0.00046849,30]
[314472287,1708371061522,-500.0,0.00046849,30]
[314472288,1708371061533,-500.0,0.00046849,30]
[314472289,1708371061548,-763.99,0.00046849,30]
[314472290,1708371061559,-847.84,0.00046849,30]
[314472291,1708371061570,-589.63035737,0.00046849,30]
[314472292,1708371061582,-658.13,0.00046849,30]
[314472293,1708371061592,-614.77301057,0.00046849,30]
[314472294,1708371061602,-500.0,0.00046849,30]
[314472295,1708371061613,-1227.67,0.00046849,30]
[314472296,1708371061624,-506.89,0.00046849,30]
[314472297,1708371061634,-500.0,0.00046849,30]
[314472298,1708371061645,-500.0,0.00046849,30]
[314472299,1708371061656,-500.0,0.00046849,30]
[314472300,1708371061667,-500.0,0.00046849,30]
[314472301,1708371061680,-693.62,0.00046849,30]
[314472302,1708371061691,-500.0,0.00046849,30]
[314472303,1708371061702,-500.0,0.00046849,30]
[314472304,1708371061716,-655.99,0.00046849,30]
[314472305,1708371061730,-884.88,0.00046849,30]
[314472306,1708371061741,-603.33,0.00046849,30]
[314472307,1708371061752,-500.0,0.00046849,30]
[314472308,1708371061762,-500.0,0.00046849,30]
[314472309,1708371061773,-500.0,0.00046849,30]
[314472310,1708371061787,-500.0,0.00046849,30]
[314472311,1708371061798,-500.0,0.00046849,30]
[314472312,1708371061809,-500.0,0.00046849,30]
[314472313,1708371061820,-500.0,0.00046849,30]
[314472314,1708371061830,-874.69,0.00046849,30]
[314472315,1708371061841,-500.0,0.00046849,30]
[314472316,1708371061852,-810.2,0.00046849,30]
[314472317,1708371061863,-500.0,0.00046849,30]
[314472318,1708371061874,-784.04,0.00046849,30]
[314472319,1708371061884,-500.0,0.00046849,30]
[314472320,1708371061895,-500.0,0.00046849,30]
[314472321,1708371061906,-712.64,0.00046849,30]
[314472322,1708371061917,-500.0,0.00046849,30]
[314472323,1708371061928,-500.0,0.00046849,30]
[314472324,1708371061938,-500.0,0.00046849,30]
[314472325,1708371061949,-500.0,0.00046849,30]
[314472326,1708371061960,-500.0,0.00046849,30]
[314472327,1708371061970,-500.0,0.00046849,30]
[314472328,1708371061980,-758.8,0.00046849,30]
[314472329,1708371061990,-970.55,0.00046849,30]
[314472330,1708371062000,-500.0,0.00046849,30]
[314472331,1708371062010,-810.72,0.00046849,30]
[314472332,1708371062021,-784.42,0.00046849,30]
[314472333,1708371062030,-500.0,0.00046849,30]
[314472334,1708371062044,-500.0,0.00046849,30]
[314472335,1708371062054,-500.0,0.00046849,30]
[314472336,1708371062064,-500.0,0.00046849,30]
[314472337,1708371062073,-597.14,0.00046849,30]
[314472338,1708371062083,-582.26,0.00046849,30]
[314472339,1708371062093,-752.47,0.00046849,30]
[314472340,1708371062104,-500.0,0.00046849,30]
[314472341,1708371062115,-751.83,0.00046849,30]
[314472342,1708371062125,-500.0,0.00046849,30]
[314472343,1708371062135,-537.21,0.00046849,30]
[314472344,1708371062145,-500.0,0.00046849,30]
[314472345,1708371062156,-500.0,0.00046849,30]
[314472346,1708371062166,-500.0,0.00046849,30]
[314472347,1708371062176,-500.0,0.00046849,30]
[314472348,1708371062186,-562.47557229,0.00046849,30]
[314472349,1708371062196,-613.44,0.00046849,30]
[314472350,1708371062207,-500.0,0.00046849,30]
[314472351,1708371062217,-500.0,0.00046849,30]
[314472352,1708371062227,-500.0,0.00046849,30]
[314472353,1708371062237,-500.0,0.00046849,30]
[314472354,1708371062248,-8677.61,0.00046849,30]
[314472355,1708371062260,-500.0,0.00046849,30]
[314472356,1708371062270,-892.63,0.00046849,30]
[314472357,1708371062281,-500.0,0.00046849,30]
[314472358,1708371062295,-500.0,0.00046849,30]
[314472359,1708371062305,-500.0,0.00046849,30]
[314472360,1708371062316,-500.0,0.00046849,30]
[314472361,1708371062326,-500.0,0.00046849,30]
[314472362,1708371062337,-728.75,0.00046849,30]
[314472363,1708371062348,-704.14,0.00046849,30]
[314472364,1708371062359,-500.0,0.00046849,30]
[314472365,1708371062369,-500.0,0.00046849,30]
[314472366,1708371062380,-598.58,0.00046849,30]
[314472367,1708371062391,-745.67,0.00046849,30]
[314472368,1708371062402,-968.0,0.00046849,30]
[314472369,1708371062412,-500.0,0.00046849,30]
[314472370,1708371062423,-500.0,0.00046849,30]
[314472371,1708371062434,-500.0,0.00046849,30]
[314472372,1708371062444,-500.0,0.00046849,30]
[314472373,1708371062455,-500.0,0.00046849,30]
[314472374,1708371062466,-500.0,0.00046849,30]
[314472375,1708371062476,-500.0,0.00046849,30]
[314472376,1708371062487,-500.0,0.00046849,30]
[314472377,1708371062497,-500.0,0.00046849,2]
[314472378,1708371062507,-500.0,0.00046849,30]
[314472379,1708371062518,-500.0,0.00046849,30]
[314472380,1708371062528,-500.0,0.00046849,30]
[314472381,1708371062540,-453.64852912,0.00046849,30]
[314472382,1708371062550,-500.0,0.00046849,30]
[314472383,1708371062560,-500.0,0.00046849,30]
[314472384,1708371062570,-861.08,0.00046849,30]
[314472385,1708371062580,-500.0,0.00046849,30]
[314472386,1708371062590,-500.0,0.00046849,30]
[314472387,1708371062601,-500.0,0.00046849,30]
[314472388,1708371062612,-507.99,0.00046849,30]
[314472389,1708371062623,-500.0,0.00046849,30]
[314472390,1708371062634,-500.0,0.00046849,30]
[314472391,1708371062646,-500.0,0.00046849,30]
[314472392,1708371062657,-534.12,0.00046849,30]
[314472393,1708371062672,-500.0,0.00046849,7]
[314472394,1708371062692,-572.53,0.00046849,30]
[314472395,1708371062712,-500.0,0.00046849,30]
[314472396,1708371062730,-516.41164404,0.00046849,30]
[314472397,1708371062741,-500.0,0.00046849,30]
[314472398,1708371062752,-500.0,0.00046849,30]
[314472399,1708371062762,-500.0,0.00046849,30]
[314472400,1708371062771,-500.0,0.00046849,30]
[314472401,1708371062781,-500.0,0.00046849,30]
[314472402,1708371062797,-500.0,0.00046849,30]
[314472403,1708371062807,-521.07530971,0.00046849,30]
[314472404,1708371062818,-500.0,0.00046849,30]
[314472405,1708371062828,-1000.0,0.00046849,7]
[314472406,1708371062838,-514.86,0.00046849,30]
[314472407,1708371062848,-524.09417532,0.00046849,30]
[314472408,1708371062858,-500.0,0.00046849,30]
[314472409,1708371062868,-500.0,0.00046849,30]
[314472410,1708371062878,-500.0,0.00046849,30]
[314472411,1708371062887,-500.0,0.00046849,30]
[314472412,1708371062898,-500.0,0.00046849,30]
[314472413,1708371062908,-500.0,0.00046849,30]
[314472414,1708371062917,-500.0,0.00046849,30]
[314472415,1708371062926,-509.21600997,0.00046849,30]
[314472416,1708371062935,-500.0,0.00046849,30]
[314472417,1708371062944,-500.0,0.00046849,30]
[314472418,1708371062954,-500.0,0.00046849,30]
[314472419,1708371062964,-755.16,0.00046849,30]
[314472420,1708371062974,-500.0,0.00046849,30]
[314472421,1708371062985,-500.0,0.00046849,30]
[314472422,1708371062995,-500.0,0.00046849,30]
[314472423,1708371063005,-500.0,0.00046849,30]
[314472424,1708371063016,-500.0,0.00046849,30]
[314472425,1708371063026,-822.04,0.00046849,30]
[314472426,1708371063038,-500.0,0.00046849,30]
[314472427,1708371063048,-500.0,0.00046849,30]
[314472428,1708371063057,-823.86,0.00046849,30]
[314472429,1708371063202,-500.0,0.00046849,30]
[314472430,1708371063213,-500.0,0.00046849,30]
[314472431,1708371063223,-757.21,0.00046849,30]
[314472432,1708371063233,-862.93,0.00046849,30]
[314472433,1708371063244,-2000.0,0.00046849,30]
[314472434,1708371063253,-241.79,0.00046849,30]
[314472435,1708371063262,-500.0,0.00046849,30]
[314472436,1708371063272,-500.0,0.00046849,30]
[314472437,1708371063282,-500.0,0.00046849,30]
[314472438,1708371063293,-500.0,0.00046849,30]
[314472439,1708371063302,-500.0,0.00046849,30]
[314472440,1708371063313,-946.29,0.00046849,30]
[314472441,1708371063323,-500.0,0.00046849,30]
[314472442,1708371063333,-500.0,0.00046849,30]
[314472443,1708371063343,-500.0,0.00046849,30]
[314472444,1708371063353,-747.07,0.00046849,30]
[314472445,1708371063364,-500.0,0.00046849,30]
[314472446,1708371063373,-500.0,0.00046849,30]
[314472447,1708371063383,-500.0,0.00046849,30]
[314472448,1708371063393,-500.0,0.00046849,30]
[314472449,1708371063402,-500.0,0.00046849,30]
[314472450,1708371063411,-702.88,0.00046849,30]
[314472451,1708371063421,-500.0,0.00046849,30]
[314472452,1708371063431,-584.82,0.00046849,30]
[314472453,1708371063440,-500.0,0.00046849,30]
[314472454,1708371063450,-1429.42,0.00046849,30]
[314472455,1708371063459,-738.08,0.00046849,30]
[314472456,1708371063469,-500.0,0.00046849,30]
[314472457,1708371063479,-296.34981373,0.00046849,30]
[314472458,1708371063488,-500.0,0.00046849,30]
[314472459,1708371063498,-500.0,0.00046849,30]
[314472460,1708371063507,-500.0,0.00046849,30]
[314472461,1708371063517,-563.19,0.00046849,30]
[314472462,1708371063526,-500.0,0.00046849,30]
[314472463,1708371063537,-500.0,0.00046849,30]
[314472464,1708371063546,-435.44908939,0.00046849,30]
[314472465,1708371063556,-528.73862811,0.00046849,30]
[314472466,1708371063566,-473.75974268,0.00046849,30]
[314472467,1708371063575,-500.0,0.00046849,30]
[314472468,1708371063584,-500.0,0.00046849,30]
[314472469,1708371063594,-529.32751428,0.00046849,30]
[314472470,1708371063604,-500.0,0.00046849,30]
[314472471,1708371063614,-858.77,0.00046849,30]
[314472472,1708371063624,-621.01,0.00046849,30]
[314472473,1708371063634,-500.0,0.00046849,30]
[314472474,1708371063644,-500.0,0.00046849,30]
[314472475,1708371063654,-500.0,0.00046849,30]
[314472476,1708371063665,-1322.51,0.00046849,30]
[314472477,1708371063682,-500.0,0.00046849,30]
[314472478,1708371063695,-500.0,0.00046849,30]
[314472479,1708371063706,-500.0,0.00046849,30]
[314472480,1708371063715,-500.0,0.00046849,30]
[314472481,1708371063727,-500.0,0.00046849,30]
[314472482,1708371063738,-500.0,0.00046849,30]
[314472483,1708371063748,-500.0,0.00046849,30]
[314472484,1708371063758,-985.63,0.00046849,30]
[314472485,1708371063768,-500.0,0.00046849,30]
[314472486,1708371063778,-500.0,0.00046849,30]
[314472487,1708371063790,-500.0,0.00046849,30]
[314472488,1708371063802,-500.0,0.00046849,30]
[314472489,1708371063811,-500.0,0.00046849,30]
[314472490,1708371063820,-500.0,0.00046849,30]
[314472491,1708371063830,-500.0,0.00046849,30]
[314472492,1708371063839,-500.0,0.00046849,30]
[314472493,1708371063848,-711.69,0.00046849,30]
[314472494,1708371063858,-500.0,0.00046849,30]
[314472495,1708371063867,-500.0,0.00046849,30]
[314472496,1708371063877,-500.0,0.00046849,30]
[314472497,1708371063886,-500.0,0.00046849,30]
[314472498,1708371063895,-913.67,0.00046849,30]
[314472499,1708371063906,-2806.73,0.00046849,30]
[314472500,1708371063916,-642.59,0.00046849,30]
[314472501,1708371063925,-500.0,0.00046849,30]
[314472502,1708371063935,-500.0,0.00046849,30]
[314472503,1708371063944,-500.0,0.00046849,30]
[314472504,1708371063953,-594.06,0.00046849,30]
[314472505,1708371063963,-500.0,0.00046849,30]
[314472506,1708371063972,-500.0,0.00046849,30]
[314472507,1708371063981,-500.0,0.00046849,30]
[314472508,1708371063990,-500.0,0.00046849,30]
[314472509,1708371063999,-500.0,0.00046849,30]
[314472510,1708371064008,-534.77782647,0.00046849,30]
[314472511,1708371064017,-500.0,0.00046849,30]
[314472512,1708371064026,-657.96,0.00046849,30]
[314472513,1708371064037,-1057.86,0.00046849,30]
[314472514,1708371064046,-535.93,0.00046849,30]
[314472515,1708371064055,-500.0,0.00046849,30]
[314472516,1708371064065,-500.0,0.00046849,30]
[314472517,1708371064085,-500.0,0.00046849,30]
[314472518,1708371064094,-500.0,0.00046849,30]
[314472519,1708371064103,-500.0,0.00046849,30]
[314472520,1708371064112,-500.0,0.00046849,30]
[314472521,1708371064122,-500.0,0.00046849,30]
[314472522,1708371064131,-1012.82,0.00046849,30]
[314472523,1708371064140,-500.0,0.00046849,30]
[314472524,1708371064150,-1286.4,0.00046849,30]
[314472525,1708371064159,-500.0,0.00046849,30]
[314472526,1708371064168,-500.0,0.00046849,30]
[314472527,1708371064178,-500.0,0.00046849,30]
[314472528,1708371064188,-500.0,0.00046849,30]
[314472529,1708371064197,-1522.8,0.00046849,30]
[314472530,1708371064206,-500.0,0.00046849,30]
[314472531,1708371064215,-500.0,0.00046849,30]
[314472532,1708371064225,-500.0,0.00046849,30]
[314472533,1708371064234,-941.74,0.00046849,30]
[314472534,1708371064243,-508.94184691,0.00046849,30]
[314472535,1708371064254,-500.0,0.00046849,30]
[314472536,1708371064263,-500.0,0.00046849,30]
[314472537,1708371064273,-580.18,0.00046849,30]
[314472538,1708371064283,-500.0,0.00046849,30]
[314472539,1708371064294,-500.0,0.00046849,30]
[314472540,1708371064306,-500.0,0.00046849,30]
[314472541,1708371064316,-1060.51,0.00046849,30]
[314472542,1708371064325,-828.93,0.00046849,30]
[314472543,1708371064334,-516.96683011,0.00046849,30]
[314472544,1708371064344,-500.0,0.00046849,30]
[314472545,1708371064353,-500.0,0.00046849,30]
[314472546,1708371064362,-1004.61,0.00046849,30]
[314472547,1708371064371,-500.0,0.00046849,30]
[314472548,1708371064381,-500.0,0.00046849,30]
[314472549,1708371064393,-774.46,0.00046849,30]
[314472550,1708371064403,-500.0,0.00046849,30]
[314472551,1708371064412,-500.0,0.00046849,30]
[314472552,1708371064422,-500.0,0.00046849,30]
[314472553,1708371064432,-1070.76,0.00046849,30]
[314472554,1708371064442,-500.0,0.00046849,30]
[314472555,1708371064452,-500.0,0.00046849,30]
[314472556,1708371064462,-500.0,0.00046849,30]
[314472557,1708371064471,-2715.79,0.00046849,30]
[314472558,1708371064480,-500.0,0.00046849,30]
[314472559,1708371064490,-500.0,0.00046849,30]
[314472560,1708371064499,-500.0,0.00046849,30]
[314472561,1708371064509,-822.27,0.00046849,30]
[314472562,1708371064519,-500.0,0.00046849,30]
[314472563,1708371064529,-697.23,0.00046849,30]
[314472564,1708371064539,-500.0,0.00046849,30]
[314472565,1708371064549,-809.8,0.00046849,30]
[314472566,1708371064559,-500.0,0.00046849,30]
[314472567,1708371064568,-500.0,0.00046849,30]
[314472568,1708371064578,-500.0,0.00046849,30]
[314472569,1708371064587,-509.54849928,0.00046849,30]
[314472570,1708371064596,-500.0,0.00046849,30]
[314472571,1708371064606,-500.0,0.00046849,30]
[314472572,1708371064615,-500.0,0.00046849,30]
[314472573,1708371064625,-1518.05,0.00046849,30]
[314472574,1708371064634,-778.61,0.00046849,30]
[314472575,1708371064644,-634.81,0.00046849,30]
[314472576,1708371064654,-500.0,0.00046849,30]
[314472577,1708371064663,-500.0,0.00046849,30]
[314472578,1708371064675,-500.0,0.00046849,30]
[314472579,1708371064686,-500.0,0.00046849,30]
[314472580,1708371064695,-500.0,0.00046849,30]
[314472581,1708371064705,-500.0,0.00046849,30]
[314472582,1708371064715,-500.0,0.00046849,30]
[314472583,1708371064725,-2428.71,0.00046849,30]
[314472584,1708371064734,-500.0,0.00046849,30]
[314472585,1708371064744,-500.0,0.00046849,30]
[314472586,1708371064755,-825.88,0.00046849,30]
[314472587,1708371064764,-500.0,0.00046849,30]
[314472588,1708371064776,-929.01,0.00046849,30]
[314472589,1708371064786,-500.0,0.00046849,30]
[314472590,1708371064796,-1469.62,0.00046849,30]
[314472591,1708371064805,-500.0,0.00046849,30]
[314472592,1708371064815,-500.0,0.00046849,30]
[314472593,1708371064825,-809.61,0.00046849,30]
[314472594,1708371064835,-894.76,0.00046849,30]
[314472595,1708371064844,-1074.24,0.00046849,30]
[314472596,1708371064853,-550.91486535,0.00046849,30]
[314472597,1708371064863,-500.0,0.00046849,30]
[314472598,1708371064873,-500.0,0.00046849,30]
[314472599,1708371064883,-2051.13,0.00046849,30]
[314472600,1708371064893,-500.0,0.00046849,30]
[314472601,1708371064902,-500.0,0.00046849,30]
[314472602,1708371064912,-500.0,0.00046849,30]
[314472603,1708371064922,-607.98663632,0.00046849,30]
[314472604,1708371064932,-1458.54,0.00046849,30]
[314472605,1708371064942,-500.0,0.00046849,30]
[314472606,1708371064951,-707.46,0.00046849,30]
[314472607,1708371064960,-629.07,0.00046849,30]
[314472608,1708371064970,-544.18,0.00046849,30]
[314472609,1708371064979,-557.12,0.00046849,30]
[314472610,1708371064988,-500.0,0.00046849,30]
[314472611,1708371064998,-2810.15,0.00046849,30]
[314472612,1708371065008,-1214.67,0.00046849,30]
[314472613,1708371065018,-500.0,0.00046849,2]
[314472614,1708371065027,-1374.94,0.00046849,30]
[314472615,1708371065038,-500.0,0.00046849,30]
[314472616,1708371065049,-500.0,0.00046849,30]
[314472617,1708371065058,-539.3,0.00046849,30]
[314472618,1708371065067,-402.89939423,0.00046849,30]
[314472619,1708371065076,-889.9,0.00046849,30]